fUST/lending_fUST_20240121
["ID","MTS","AMOUNT","RATE_DAILY","PERIOD"]
[312358472,1705827041396,-502.08848688,0.00030136,2]
[312358473,1705827041405,-500.0,0.00030136,2]
[312358474,1705827041415,-500.0,0.00030136,2]
[312358475,1705827041425,-500.0,0.00030136,2]
[312358476,1705827041434,-500.0,0.00030136,2]
[312358477,1705827041444,-500.0,0.00030136,2]
[312358478,1705827041453,-500.0,0.00030136,2]
[312358479,1705827041462,-500.0,0.00030136,2]
[312358480,1705827041472,-500.0,0.00030136,2]
[312358481,1705827041482,-500.0,0.00030136,2]
[312358482,1705827041491,-500.0,0.00030136,2]
[312358483,1705827041501,-390.67432736,0.00030136,2]
[312358484,1705827041510,-500.0,0.00030136,2]
[312358485,1705827041519,-500.0,0.00030136,2]
[312358486,1705827041528,-500.0,0.00030136,2]
[312358487,1705827041538,-500.0,0.00030136,2]
[312358488,1705827041548,-500.19381526,0.00030136,2]
[312358489,1705827041558,-500.0,0.00030136,2]
[312358490,1705827041567,-500.0,0.00030136,2]
[312358491,1705827041576,-500.0,0.00030136,2]
[312358492,1705827041585,-958.57755825,0.00030136,2]
[312358493,1705827041719,-41.42244175,0.00030136,2]
[312358494,1705827041728,-1075.83,0.00030136,2]
[312358495,1705827041738,-500.0,0.00030136,2]
[312358496,1705827041747,-2181.24,0.00030136,2]
[312358497,1705827041757,-500.0,0.00030136,2]
[312358498,1705827041766,-500.0,0.00030136,2]
[312358499,1705827041775,-500.0,0.00030136,2]
[312358500,1705827041785,-554.88569224,0.00030136,2]
[312358501,1705827041794,-624.78198421,0.00030136,2]
[312358502,1705827041804,-1099.43,0.00030136,2]
[312358503,1705827041813,-500.0,0.00030136,2]
[312358504,1705827041823,-500.0,0.00030136,2]
[312358505,1705827041832,-501.52704151,0.00030136,2]
[312358506,1705827041842,-500.0,0.00030136,2]
[312358507,1705827041852,-500.31,0.00030136,2]
[312358508,1705827041860,-500.0,0.00030136,2]
[312358509,1705827041870,-500.0,0.00030136,2]
[312358510,1705827041879,-2966.89,0.00030136,2]
[312358511,1705827041888,-464.02860065,0.00030136,2]
[312358512,1705827041898,-500.0,0.00030136,2]
[312358513,1705827041907,-500.0,0.00030136,2]
[312358514,1705827041916,-633.68,0.00030136,2]
[312358515,1705827041926,-500.0,0.00030136,2]
[312358516,1705827041935,-500.0,0.00030136,2]
[312358517,1705827041944,-501.78466659,0.00030136,2]
[312358518,1705827041954,-500.0,0.00030136,2]
[312358519,1705827041963,-500.0,0.00030136,2]
[312358520,1705827041972,-501.32256975,0.00030136,2]
[312358521,1705827041981,-500.0,0.00030136,2]
[312358522,1705827041990,-500.0,0.00030136,2]
[312358523,1705827041999,-500.0,0.00030136,2]
[312358524,1705827042009,-500.0,0.00030136,2]
[312358525,1705827042018,-500.0,0.00030136,2]
[312358526,1705827042028,-409.5588968,0.00030136,2]
[312358527,1705827042037,-562.18289827,0.00030136,2]
[312358528,1705827042046,-500.0,0.00030136,2]
[312358529,1705827042055,-500.0,0.00030136,2]
[312358530,1705827042065,-500.0,0.00030136,2]
[312358531,1705827042075,-1166.53,0.00030136,2]
[312358532,1705827042085,-144946.65826526,0.00030136,14]
[312358533,1705827042095,-387.91365375,0.00030136,2]
[312358534,1705827042105,-859.12,0.00030136,2]
[312358535,1705827042114,-768.2,0.00030136,2]
[312358536,1705827042123,-501.77316946,0.00030136,2]
[312358537,1705827042133,-1522.55,0.00030136,2]
[312358538,1705827042141,-500.0,0.00030136,2]
[312358539,1705827042151,-602.55421937,0.00030136,2]
[312358540,1705827042160,-500.0,0.00030136,2]
[312358541,1705827042169,-500.0,0.00030136,2]
[312358542,1705827042178,-500.0,0.00030136,2]
[312358543,1705827042187,-500.0,0.00030136,2]
[312358544,1705827042196,-500.0,0.00030136,2]
[312358545,1705827042205,-500.0,0.00030136,2]
[312358546,1705827042214,-500.0,0.00030136,2]
[312358547,1705827042224,-637.23312708,0.00030136,2]
[312358548,1705827042234,-581.49926245,0.00030136,2]
[312358549,1705827042244,-500.0,0.00030136,2]
[312358550,1705827042254,-500.0,0.00030136,2]
[312358551,1705827042264,-500.0,0.00030136,2]
[312358552,1705827042274,-500.0,0.00030136,2]
[312358553,1705827042282,-500.0,0.00030136,2]
[312358554,1705827042292,-500.0,0.00030136,2]
[312358555,1705827042302,-500.0,0.00030136,2]
[312358556,1705827042312,-500.0,0.00030136,2]
[312358557,1705827042323,-500.0,0.00030136,2]
[312358558,1705827042333,-500.0,0.00030136,2]
[312358559,1705827042343,-500.0,0.00030136,2]
[312358560,1705827042353,-500.0,0.00030136,2]
[312358561,1705827042362,-500.40738699,0.00030136,2]
[312358562,1705827042372,-500.0,0.00030136,2]
[312358563,1705827042381,-500.0,0.00030136,2]
[312358564,1705827042392,-598.57591787,0.00030136,2]
[312358565,1705827042402,-500.0,0.00030136,2]
[312358566,1705827042411,-506.66714985,0.00030136,2]
[312358567,1705827042420,-500.0,0.00030136,2]
[312358568,1705827042431,-500.0,0.00030136,2]
[312358569,1705827042440,-500.0,0.00030136,2]
[312358570,1705827042449,-283.18988707,0.00030136,3]
[312358571,1705827042458,-500.0,0.00030136,2]
[312358572,1705827042467,-500.0,0.00030136,2]
[312358573,1705827042476,-500.0,0.00030136,2]
[312358574,1705827042485,-500.0,0.00030136,2]
[312358575,1705827042494,-500.0,0.00030136,2]
[312358576,1705827042503,-500.0,0.00030136,2]
[312358577,1705827042513,-590.12,0.00030136,2]
[312358578,1705827042522,-300.73816161,0.00030136,2]
[312358579,1705827042531,-222.05922912,0.00030136,2]
[312358580,1705827042540,-500.0,0.00030136,2]
[312358581,1705827042549,-1000.0,0.00030136,2]
[312358582,1705827042559,-500.0,0.00030136,2]
[312358583,1705827042567,-500.29208664,0.00030136,2]
[312358584,1705827042577,-500.0,0.00030136,2]
[312358585,1705827042586,-500.0,0.00030136,2]
[312358586,1705827042596,-500.0,0.00030136,2]
[312358587,1705827042606,-500.0,0.00030136,2]
[312358588,1705827042617,-630.44,0.00030136,2]
[312358589,1705827042626,-656.62,0.00030136,2]
[312358590,1705827042635,-1339.82,0.00030136,2]
[312358591,1705827042646,-200.0,0.00030136,2]
[312358592,1705827042655,-500.0,0.00030136,2]
[312358593,1705827042665,-541.10630553,0.00030136,2]
[312358594,1705827042675,-674.92,0.00030136,2]
[312358595,1705827042685,-2800.0,0.00030136,2]
[312358596,1705827042695,-623.93,0.00030136,2]
[312358597,1705827042705,-500.0,0.00030136,2]
[312358598,1705827042714,-527.82,0.00030136,2]
[312358600,1705827042725,-614.55,0.00030136,2]
[312358602,1705827042734,-500.0,0.00030136,2]
[312358604,1705827042744,-500.0,0.00030136,2]
[312358607,1705827042870,-500.0,0.00030136,2]
[312358608,1705827042880,-500.0,0.00030136,2]
[312358609,1705827042890,-500.0,0.00030136,2]
[312358610,1705827042899,-500.0,0.00030136,14]
[312358611,1705827042909,-500.0,0.00030136,2]
[312358612,1705827042918,-500.0,0.00030136,2]
[312358613,1705827042927,-195.28673642,0.00030136,4]
[312358614,1705827042937,-300.0,0.00030136,2]
[312358615,1705827042946,-500.0,0.00030136,2]
[312358616,1705827042955,-500.0,0.00030136,2]
[312358617,1705827042964,-500.0,0.00030136,2]
[312358618,1705827042973,-500.0,0.00030136,2]
[312358619,1705827042983,-501.49602513,0.00030136,2]
[312358620,1705827042992,-500.0,0.00030136,2]
[312358621,1705827043002,-500.0,0.00030136,2]
[312358622,1705827043011,-500.0,0.00030136,2]
[312358623,1705827043020,-500.0,0.00030136,2]
[312358624,1705827043029,-500.0,0.00030136,2]
[312358625,1705827043039,-500.0,0.00030136,2]
[312358626,1705827043048,-500.0,0.00030136,2]
[312358627,1705827043058,-500.0,0.00030136,2]
[312358628,1705827043067,-500.0,0.00030136,2]
[312358629,1705827043077,-848.49,0.00030136,2]
[312358630,1705827043087,-500.0,0.00030136,2]
[312358631,1705827043096,-334.31172185,0.00030136,2]
[312358632,1705827043105,-500.0,0.00030136,2]
[312358633,1705827043114,-500.0,0.00030136,2]
[312358634,1705827043123,-500.0,0.00030136,2]
[312358635,1705827043132,-2063.46,0.00030136,2]
[312358636,1705827043142,-500.0,0.00030136,2]
[312358637,1705827043151,-1200.0,0.00030136,4]
[312358638,1705827043161,-500.0,0.00030136,2]
[312358639,1705827043170,-500.0,0.00030136,2]
[312358640,1705827043179,-500.0,0.00030136,2]
[312358641,1705827043188,-500.0,0.00030136,2]
[312358642,1705827043197,-27910.08,0.00030136,2]
[312358643,1705827043207,-500.0,0.00030136,2]
[312358644,1705827043216,-500.0,0.00030136,2]
[312358645,1705827043226,-500.16510899,0.00030136,2]
[312358646,1705827043236,-500.0,0.00030136,2]
[312358647,1705827043245,-500.0,0.00030136,2]
[312358648,1705827043254,-3282.85,0.00030136,2]
[312358649,1705827043263,-500.0,0.00030136,2]
[312358650,1705827043273,-500.0,0.00030136,2]
[312358651,1705827043282,-500.0,0.00030136,2]
[312358652,1705827043291,-500.0,0.00030136,2]
[312358653,1705827043300,-500.0,0.00030136,2]
[312358654,1705827043309,-500.0,0.00030136,2]
[312358655,1705827043319,-500.0,0.00030136,2]
[312358656,1705827043328,-500.0,0.00030136,2]
[312358657,1705827043338,-500.0,0.00030136,2]
[312358658,1705827043347,-569.94,0.00030136,2]
[312358659,1705827043356,-500.0,0.00030136,2]
[312358660,1705827043365,-501.87748932,0.00030136,2]
[312358661,1705827043375,-506.82,0.00030136,2]
[312358662,1705827043386,-500.0,0.00030136,2]
[312358663,1705827043398,-500.0,0.00030136,2]
[312358664,1705827043407,-1268.28,0.00030136,2]
[312358665,1705827043417,-6497.1,0.00030136,2]
[312358666,1705827043426,-500.0,0.00030136,2]
[312358667,1705827043436,-500.0,0.00030136,2]
[312358668,1705827043445,-500.0,0.00030136,2]
[312358669,1705827043455,-2407.24,0.00030136,2]
[312358670,1705827043465,-500.0,0.00030136,2]
[312358671,1705827043475,-500.0,0.00030136,2]
[312358672,1705827043484,-500.0,0.00030136,2]
[312358673,1705827043493,-500.0,0.00030136,2]
[312358674,1705827043502,-500.0,0.00030136,2]
[312358675,1705827043511,-500.0,0.00030136,2]
[312358676,1705827043520,-6246.55,0.00030136,2]
[312358677,1705827043529,-500.0,0.00030136,2]
[312358678,1705827043538,-500.0,0.00030136,2]
[312358679,1705827043547,-500.0,0.00030136,2]
[312358680,1705827043557,-501.20678508,0.00030136,2]
[312358681,1705827043567,-1357.4,0.00030136,2]
[312358682,1705827043576,-661.72,0.00030136,2]
[312358683,1705827043586,-735.3,0.00030136,2]
[312358684,1705827043595,-500.0,0.00030136,2]
[312358685,1705827043604,-500.0,0.00030136,2]
[312358686,1705827043613,-8300.67,0.00030136,2]
[312358687,1705827043622,-272.02965758,0.00030136,2]
[312358688,1705827043631,-500.0,0.00030136,2]
[312358689,1705827043640,-501.21615261,0.00030136,2]
[312358690,1705827043650,-500.0,0.00030136,2]
[312358691,1705827043659,-500.0,0.00030136,2]
[312358692,1705827043669,-500.0,0.00030136,2]
[312358693,1705827043679,-1502.85,0.00030136,2]
[312358694,1705827043689,-500.0,0.00030136,2]
[312358695,1705827043700,-500.0,0.00030136,2]
[312358696,1705827043709,-470.12320237,0.00030136,2]
[312358697,1705827043718,-8991.16,0.00030136,2]
[312358698,1705827043728,-1228.33,0.00030136,2]
[312358699,1705827043738,-500.0,0.00030136,2]
[312358700,1705827043748,-1296.72,0.00030136,2]
[312358701,1705827043759,-500.0,0.00030136,2]
[312358702,1705827043768,-500.0,0.00030136,2]
[312358703,1705827043777,-2208.26,0.00030136,2]
[312358704,1705827043787,-500.3997051,0.00030136,2]
[312358705,1705827043796,-1000.0,0.00030136,2]
[312358706,1705827043807,-500.0,0.00030136,2]
[312358707,1705827043818,-500.0,0.00030136,2]
[312358708,1705827043827,-500.0,0.00030136,2]
[312358709,1705827043837,-168.30069407,0.00030136,2]
[312358710,1705827043846,-500.0,0.00030136,2]
[312358711,1705827043855,-501.10340825,0.00030136,2]
[312358712,1705827043865,-500.0,0.00030136,2]
[312358713,1705827043875,-833.1,0.00030136,2]
[312358714,1705827043885,-500.0,0.00030136,2]
[312358715,1705827043894,-500.38009396,0.00030136,2]
[312358716,1705827043903,-500.0,0.00030136,2]
[312358717,1705827043912,-500.0,0.00030136,2]
[312358718,1705827043922,-1854.73,0.00030136,2]
[312358719,1705827043931,-15825.79,0.00030136,2]
[312358720,1705827043940,-500.0,0.00030136,2]
[312358721,1705827043949,-500.0,0.00030136,2]
[312358722,1705827043959,-500.0,0.00030136,2]
[312358723,1705827043968,-500.0,0.00030136,2]
[312358724,1705827043977,-500.0,0.00030136,2]
[312358725,1705827043986,-706.41,0.00030136,2]
[312358726,1705827043995,-581.40000945,0.00030136,2]
[312358727,1705827044004,-500.0,0.00030136,2]
[312358728,1705827044013,-1364.99,0.00030136,2]
[312358729,1705827044023,-521.26,0.00030136,2]
[312358730,1705827044032,-840.13,0.00030136,2]
[312358731,1705827044041,-500.0,0.00030136,2]
[312358732,1705827044050,-500.0,0.00030136,2]
[312358733,1705827044059,-500.0,0.00030136,2]
[312358734,1705827044068,-500.0,0.00030136,2]
[312358735,1705827044077,-702.19,0.00030136,2]
[312358736,1705827044086,-500.0,0.00030136,2]
[312358737,1705827044095,-500.0,0.00030136,2]
[312358738,1705827044104,-500.0,0.00030136,2]
[312358739,1705827044113,-500.0,0.00030136,2]
[312358740,1705827044123,-500.0,0.00030136,2]
[312358741,1705827044132,-913.25,0.00030136,2]
[312358742,1705827044141,-213.03649456,0.00030136,2]
[312358743,1705827044151,-538.03317882,0.00030136,2]
[312358744,1705827044160,-500.0,0.00030136,2]
[312358745,1705827044168,-500.0,0.00030136,2]
[312358746,1705827044177,-813.09,0.00030136,2]
[312358747,1705827044186,-530.54853216,0.00030136,2]
[312358748,1705827044195,-246.16646405,0.00030136,2]
[312358749,1705827044203,-1000.0,0.00030136,2]
[312358750,1705827044213,-500.0,0.00030136,2]
[312358751,1705827044223,-775.2,0.00030136,2]
[312358752,1705827044234,-500.0,0.00030136,2]
[312358753,1705827044244,-500.0,0.00030136,2]
[312358754,1705827044254,-2486.4,0.00030136,2]
[312358755,1705827044266,-500.0,0.00030136,2]
[312358756,1705827044275,-500.0,0.00030136,2]
[312358757,1705827044284,-197.51931801,0.00030136,2]
[312358758,1705827044293,-357.12428259,0.00030136,2]
[312358759,1705827044303,-500.0,0.00030136,2]
[312358760,1705827044313,-500.0,0.00030136,2]
[312358761,1705827044322,-1553.93,0.00030136,2]
[312358762,1705827044332,-500.85399954,0.00030136,2]
[312358763,1705827044341,-500.0,0.00030136,2]
[312358764,1705827044350,-500.0,0.00030136,2]
[312358765,1705827044360,-992.49,0.00030136,2]
[312358766,1705827044368,-500.0,0.00030136,2]
[312358767,1705827044377,-500.0,0.00030136,2]
[312358768,1705827044391,-500.0,0.00030136,2]
[312358769,1705827044400,-2053.12,0.00030136,2]
[312358770,1705827044409,-500.0,0.00030136,2]
[312358771,1705827044418,-1273.02,0.00030136,2]
[312358772,1705827044428,-500.0,0.00030136,2]
[312358773,1705827044437,-500.0,0.00030136,2]
[312358774,1705827044446,-663.47,0.00030136,2]
[312358775,1705827044455,-618.33,0.00030136,2]
[312358776,1705827044464,-9222.15,0.00030136,2]
[312358777,1705827044473,-500.0,0.00030136,2]
[312358778,1705827044482,-154.4105762,0.00030137,2]
[312358779,1705827044491,-197.9207001,0.00030137,2]
[312358780,1705827044500,-306.0,0.00030137,2]
[312358781,1705827044510,-306.0,0.00030137,2]
[312358782,1705827044518,-153.0,0.00030137,2]
[312358783,1705827044527,-153.0,0.00030137,2]
[312358784,1705827044536,-153.0,0.00030137,2]
[312358785,1705827044545,-153.0,0.00030137,2]
[312358786,1705827044555,-153.0,0.00030137,2]
[312358787,1705827044564,-157.1809071,0.00030137,2]
[312358788,1705827044573,-153.0,0.00030137,2]
[312358789,1705827044582,-405.2846682,0.00030137,2]
[312358790,1705827044591,-151.0,0.00030137,2]
[312358791,1705827044600,-41856.1398373,0.00030137,2]
[312358792,1705827044609,-157.894736,0.00030137,2]
[312358793,1705827044620,-405.41592014,0.00030137,2]
[312358794,1705827044629,-215.52366303,0.0003016,2]
[312358795,1705827044638,-1000.0,0.00030233,2]
[312358796,1705827044649,-243.554,0.00030234,2]
[312358797,1705827044659,-151.0,0.00030234,2]
[312358798,1705827044668,-150.0,0.00030234,2]
[312358799,1705827044677,-500.0,0.00030296,2]
[312358800,1705827044687,-151.0,0.00030297,2]
[312358801,1705827044697,-38338.50138704,0.00030297,2]
[312358802,1705827044706,-805.53544668,0.00030324,2]
[312358803,1705827044715,-500.0,0.00030339,14]
[312358804,1705827044723,-500.0,0.00030339,14]
[312358805,1705827044732,-465.44882217,0.00030339,14]
[312358806,1705827044742,-1500.0,0.000304,2]
[312358807,1705827044752,-539.536628,0.000304,3]
[312358808,1705827044762,-303.11553415,0.00030408,2]
[312358809,1705827044770,-500.0,0.00030409,2]
[312358810,1705827044779,-500.0,0.00030409,2]
[312358811,1705827044789,-202.60431436,0.00030409,2]
[312358812,1705827044798,-568.01627189,0.00030409,7]
[312358813,1705827044808,-300.0,0.0003041,4]
[312358814,1705827044819,-1161.12480263,0.0003041,2]
[312358815,1705827044828,-155.1899775,0.0003041,4]
[312358816,1705827044837,-862.58495294,0.0003041,4]
[312358817,1705827044847,-156.26570952,0.0003041,4]
[312358818,1705827044857,-500.0,0.0003041,2]
[312358819,1705827044867,-500.0,0.0003041,2]
[312358820,1705827044876,-500.0,0.0003041,2]
[312358821,1705827044885,-500.0,0.0003041,2]
[312358822,1705827044895,-500.0,0.0003041,2]
[312358823,1705827044903,-500.0,0.0003041,2]
[312358824,1705827044912,-500.0,0.0003041,2]
[312358825,1705827044922,-150.0,0.0003041,2]
[312358826,1705827044932,-500.0,0.0003041,2]
[312358827,1705827044943,-1014.44387761,0.0003041,2]
[312358828,1705827044953,-500.0,0.0003041,2]
[312358829,1705827044964,-679.1,0.0003041,2]
[312358830,1705827044973,-500.0,0.0003041,2]
[312358831,1705827044983,-500.0,0.0003041,2]
[312358832,1705827044993,-500.0,0.0003041,2]
[312358833,1705827045002,-500.0,0.0003041,2]
[312358834,1705827045012,-544.8,0.0003041,2]
[312358835,1705827045021,-724.54,0.0003041,2]
[312358836,1705827045030,-500.0,0.0003041,2]
[312358837,1705827045040,-500.0,0.0003041,2]
[312358838,1705827045049,-500.0,0.0003041,2]
[312358839,1705827045060,-500.0,0.0003041,2]
[312358840,1705827045070,-500.0,0.0003041,7]
[312358841,1705827045079,-500.0,0.0003041,2]
[312358842,1705827045088,-432.53006519,0.0003041,2]
[312358843,1705827045097,-500.0,0.0003041,2]
[312358844,1705827045106,-500.0,0.0003041,2]
[312358845,1705827045116,-500.0,0.0003041,2]
[312358846,1705827045125,-500.0,0.0003041,2]
[312358847,1705827045134,-500.0,0.0003041,2]
[312358848,1705827045143,-500.0,0.0003041,2]
[312358849,1705827045152,-500.0,0.0003041,2]
[312358850,1705827045161,-1024.7,0.0003041,2]
[312358851,1705827045170,-271.28757262,0.0003041,2]
[312358852,1705827045179,-500.0,0.0003041,2]
[312358853,1705827045188,-220.4614793,0.0003041,2]
[312358854,1705827045197,-500.0,0.0003041,2]
[312358855,1705827045207,-520.46940625,0.0003041,2]
[312358856,1705827045217,-667.93,0.0003041,2]
[312358857,1705827045227,-500.0,0.0003041,2]
[312358858,1705827045238,-500.0,0.0003041,2]
[312358859,1705827045248,-500.0,0.0003041,2]
[312358860,1705827045258,-500.0,0.0003041,2]
[312358861,1705827045268,-500.0,0.0003041,2]
[312358862,1705827045277,-500.0,0.0003041,2]
[312358863,1705827045286,-1178.69,0.0003041,2]
[312358864,1705827045295,-500.0,0.0003041,2]
[312358865,1705827045304,-324.23899013,0.0003041,2]
[312358866,1705827045313,-215.13409114,0.0003041,2]
[312358867,1705827045421,-500.0,0.0003041,2]
[312358868,1705827045431,-500.0,0.0003041,2]
[312358869,1705827045440,-500.0,0.0003041,2]
[312358870,1705827045448,-1050.99,0.0003041,2]
[312358871,1705827045458,-500.0,0.0003041,2]
[312358872,1705827045469,-500.0,0.0003041,2]
[312358873,1705827045477,-500.0,0.0003041,2]
[312358874,1705827045486,-638.59,0.0003041,2]
[312358875,1705827045496,-500.0,0.0003041,2]
[312358876,1705827045505,-500.0,0.0003041,2]
[312358877,1705827045514,-544.28003768,0.0003041,2]
[312358878,1705827045523,-500.0,0.0003041,2]
[312358879,1705827045532,-508.70316251,0.0003041,2]
[312358880,1705827045541,-500.0,0.0003041,2]
[312358881,1705827045550,-500.0,0.0003041,2]
[312358882,1705827045559,-500.0,0.0003041,2]
[312358883,1705827045568,-500.0,0.0003041,2]
[312358884,1705827045577,-500.0,0.0003041,2]
[312358885,1705827045586,-554.16235394,0.0003041,2]
[312358886,1705827045596,-1075.83,0.0003041,2]
[312358887,1705827045605,-500.0,0.0003041,2]
[312358888,1705827045614,-2181.24,0.0003041,2]
[312358889,1705827045623,-500.0,0.0003041,2]
[312358890,1705827045632,-500.0,0.0003041,2]
[312358891,1705827045642,-1099.43,0.0003041,2]
[312358892,1705827045652,-500.0,0.0003041,2]
[312358893,1705827045661,-500.0,0.0003041,2]
[312358894,1705827045670,-500.0,0.0003041,2]
[312358895,1705827045680,-500.31,0.0003041,2]
[312358897,1705827045689,-500.0,0.0003041,2]
[312358898,1705827045698,-500.0,0.0003041,2]
[312358900,1705827045707,-2966.89,0.0003041,2]
[312358902,1705827045717,-500.0,0.0003041,2]
[312358903,1705827045726,-500.0,0.0003041,2]
[312358904,1705827045736,-633.68,0.0003041,2]
[312358905,1705827045745,-500.0,0.0003041,2]
[312358906,1705827045754,-500.0,0.0003041,2]
[312358907,1705827045764,-500.0,0.0003041,2]
[312358908,1705827045773,-500.0,0.0003041,2]
[312358909,1705827045782,-502.32093715,0.0003041,2]
[312358910,1705827045792,-473.29545084,0.0003041,2]
[312358911,1705827045801,-500.0,0.0003041,2]
[312358912,1705827045811,-500.0,0.0003041,2]
[312358913,1705827045820,-500.0,0.0003041,2]
[312358914,1705827045829,-500.0,0.0003041,2]
[312358915,1705827045839,-500.0,0.0003041,2]
[312358916,1705827045848,-500.0,0.0003041,2]
[312358917,1705827045857,-1166.53,0.0003041,2]
[312358918,1705827045866,-768.2,0.0003041,2]
[312358919,1705827045876,-859.12,0.0003041,2]
[312358920,1705827045885,-1522.55,0.0003041,2]
[312358921,1705827045894,-500.0,0.0003041,2]
[312358922,1705827045903,-500.0,0.0003041,2]
[312358923,1705827045912,-500.0,0.0003041,2]
[312358924,1705827045921,-298.60857659,0.0003041,2]
[312358925,1705827045930,-500.0,0.0003041,2]
[312358926,1705827045939,-500.0,0.0003041,2]
[312358927,1705827045948,-500.0,0.0003041,2]
[312358928,1705827045957,-500.0,0.0003041,2]
[312358929,1705827045966,-500.0,0.0003041,2]
[312358930,1705827045975,-500.0,0.0003041,2]
[312358931,1705827045985,-500.0,0.0003041,2]
[312358932,1705827045994,-500.0,0.0003041,2]
[312358933,1705827046003,-500.0,0.0003041,2]
[312358935,1705827046012,-500.0,0.0003041,2]
[312358936,1705827046021,-500.0,0.0003041,2]
[312358937,1705827046030,-500.0,0.0003041,2]
[312358938,1705827046039,-500.0,0.0003041,2]
[312358939,1705827046048,-500.0,0.0003041,2]
[312358940,1705827046058,-500.0,0.0003041,2]
[312358942,1705827046067,-555.29970225,0.0003041,2]
[312358943,1705827046077,-377.5790184,0.0003041,2]
[312358944,1705827046086,-590.12,0.0003041,2]
[312358945,1705827046095,-506.69811154,0.0003041,2]
[312358946,1705827046104,-1000.0,0.0003041,2]
[312358947,1705827046113,-500.0,0.0003041,2]
[312358948,1705827046122,-500.0,0.0003041,2]
[312358949,1705827046133,-501.70341618,0.0003041,2]
[312358950,1705827046144,-500.0,0.0003041,2]
[312358951,1705827046153,-500.0,0.0003041,2]
[312358952,1705827046163,-630.44,0.0003041,2]
[312358953,1705827046172,-656.62,0.0003041,2]
[312358954,1705827046181,-1339.82,0.0003041,2]
[312358955,1705827046190,-200.0,0.0003041,2]
[312358956,1705827046199,-500.0,0.0003041,2]
[312358957,1705827046209,-674.92,0.0003041,2]
[312358958,1705827046219,-623.93,0.0003041,2]
[312358960,1705827046228,-500.0,0.0003041,2]
[312358961,1705827046237,-527.82,0.0003041,2]
[312358962,1705827046247,-614.55,0.0003041,2]
[312358963,1705827046255,-500.0,0.0003041,2]
[312358964,1705827046265,-500.0,0.0003041,2]
[312358965,1705827046274,-517.72390546,0.0003041,2]
[312358966,1705827046283,-500.0,0.0003041,2]
[312358967,1705827046293,-500.0,0.0003041,2]
[312358968,1705827046302,-500.0,0.0003041,14]
[312358969,1705827046311,-500.0,0.0003041,2]
[312358970,1705827046320,-500.0,0.0003041,2]
[312358971,1705827046329,-500.0,0.0003041,2]
[312358972,1705827046338,-500.0,0.0003041,2]
[312358973,1705827046348,-500.0,0.0003041,2]
[312358974,1705827046359,-500.96958819,0.0003041,2]
[312358975,1705827046369,-503.93060424,0.0003041,2]
[312358976,1705827046378,-512.54465079,0.0003041,2]
[312358977,1705827046392,-500.0,0.0003041,2]
[312358978,1705827046401,-500.0,0.0003041,2]
[312358979,1705827046410,-500.0,0.0003041,2]
[312358980,1705827046422,-500.0,0.0003041,2]
[312358981,1705827046434,-500.0,0.0003041,2]
[312358982,1705827046443,-848.49,0.0003041,2]